bitfinex-derivatives/quotes_ETHF0:USTF0_20250803
["timestamp","ask_amount","ask_price","bid_price","bid_amount"]
[1754179201879,4.2457,3394.3,3394.2,1.3197]
[1754179202079,4.2457,3394.3,3394.2,0.663]
[1754179202577,4.8176,3394.9,3394.3,0.9816]
[1754179202782,6.5536,3394.9,3394.8,3.2887]
[1754179203080,5.74955295,3394.9,3394.4,1.969]
[1754179203385,5.74955295,3394.9,3393.8,3.2078]
[1754179203386,0.80575295,3394.8,3393.8,3.2078]
[1754179204586,0.58937,3394.2,3393.8,3.2078]
[1754179204987,0.58936,3394.3,3393.8,3.2078]
[1754179205187,0.58934,3394.4,3393.9,0.58942]
[1754179205488,4.68094,3394.9,3393.8,3.2078]
[1754179205784,0.58928,3394.7,3393.8,3.2078]
[1754179205985,4.68094,3394.9,3393.8,3.79723]
[1754179205986,0.58938,3394.2,3393.8,3.79723]
[1754179207583,0.58935,3394.3,3393.8,3.79723]
[1754179207792,3.2078,3394.9,3393.9,0.58941]
[1754179208081,3.2078,3394.9,3393.8,3.2078]
[1754179208082,0.58935,3394.3,3393.8,3.79722]
[1754179208786,0.58935,3394.3,3393.8,3.2078]
[1754179208987,0.58939,3394.1,3393.8,3.2078]
[1754179209281,0.58954,3393.2,3392.9,3.2078]
[1754179209485,0.5896,3392.9,3392.5,3.2078]
[1754179209987,3.2078,3393.4,3392.5,3.2078]
[1754179210184,42.435,3394.1,3392.9,3.2078]
[1754179210388,0.80547138,3394.0,3393.5,3.2078]
[1754179210590,0.58936,3394.2,3393.5,3.2078]
[1754179210889,0.5894,3394.0,3393.5,3.2078]
[1754179211084,0.5895,3393.4,3392.8,3.2078]
[1754179211277,0.58952,3393.3,3392.8,3.2078]
[1754179211478,3.2078,3393.5,3393.0,0.58956]
[1754179211983,0.5895,3393.4,3392.9,0.58958]
[1754179212285,0.5895,3393.4,3392.8,3.7974]
[1754179213388,0.58958,3393.0,3392.8,3.2078]
[1754179213891,3.2078,3393.5,3392.8,3.2078]
[1754179214187,3.2078,3393.5,3392.9,0.58958]
[1754179214387,3.2078,3393.5,3392.8,3.2078]
[1754179214588,3.2078,3393.5,3392.1,1.4743]
[1754179214589,0.58962,3392.8,3392.3,3.2078]
[1754179214786,0.58964,3392.6,3392.3,3.2078]
[1754179215981,0.5897,3392.3,3391.9,3.2078]
[1754179216595,3.2078,3393.1,3392.0,0.58974]
[1754179216795,0.58968,3392.4,3391.9,3.79755]
[1754179217592,0.58966,3392.5,3391.9,3.79755]
[1754179217990,0.58969,3392.3,3391.9,3.79755]
[1754179218192,0.58968,3392.4,3391.9,3.79755]
[1754179218796,3.2078,3392.7,3391.9,3.79755]
[1754179218797,0.58972,3392.2,3391.9,3.2078]
[1754179219698,0.58968,3392.4,3391.9,3.2078]
[1754179220397,0.58971,3392.2,3391.8,0.58977]
[1754179220598,0.5897,3392.3,3391.8,0.58977]
[1754179221694,0.58968,3392.4,3392.0,3.79753]
[1754179221895,3.2078,3392.7,3392.4,0.58966]
[1754179222092,3.2078,3392.7,3392.6,1.826]
[1754179222295,3.2078,3392.7,3392.6,4.5366]
[1754179223101,3.8151,3392.7,3392.6,4.5366]
[1754179223401,4.4643,3392.7,3392.6,4.5366]
[1754179223601,5.8437,3392.7,3392.6,4.5366]
[1754179223794,7.3262,3392.7,3392.6,4.5366]
[1754179226105,4.4643,3392.7,3392.6,4.5366]
[1754179226502,0.8999,3393.0,3392.9,1.826]
[1754179226702,3.79734,3393.2,3392.9,1.826]
[1754179226902,2.1564,3393.1,3393.0,4.5366]
[1754179227302,3.0715,3393.1,3393.0,4.5366]
[1754179227515,3.6389,3393.1,3393.0,4.5366]
[1754179229107,4.1184,3393.1,3393.0,4.5366]
[1754179229306,1.1284,3392.8,3392.5,0.58965]
[1754179229603,4.8088,3392.8,3392.7,3.3651]
[1754179229795,4.2192,3392.8,3392.7,4.3025]
[1754179231010,2.183,3392.8,3392.7,4.3025]
[1754179231202,1.257,3392.8,3392.7,4.3025]
[1754179231402,0.6291,3392.8,3392.7,4.3025]
[1754179231997,1.257,3392.8,3392.7,4.3025]
[1754179232200,3.1614,3392.8,3392.7,4.3025]
[1754179232502,1.7563,3392.6,3392.5,1.085]
[1754179232704,4.2192,3392.5,3392.4,0.6078]
[1754179232909,4.80887,3392.4,3392.3,4.4216]
[1754179233105,4.2192,3392.1,3392.0,3.2078]
[1754179233714,1.7563,3391.8,3391.7,2.938]
[1754179233905,4.2192,3391.8,3391.7,4.3025]
[1754179234607,4.2192,3391.8,3391.7,2.4495]
[1754179235017,4.2192,3391.5,3391.4,5.944]
[1754179235307,1.257,3391.5,3391.4,5.944]
[1754179235612,4.2192,3391.5,3391.4,6.6614]
[1754179236510,4.2192,3391.5,3391.4,4.3025]
[1754179236907,0.6291,3392.0,3391.9,4.3025]
[1754179237111,0.6291,3392.0,3391.9,7.5103]
[1754179237308,0.926,3392.2,3392.1,0.58972]
[1754179237511,1.5369,3392.4,3392.1,2.32182]
[1754179237710,3.7199,3392.4,3392.3,4.3025]
[1754179238006,1.257,3392.4,3392.3,4.3025]
[1754179238210,4.4648,3392.6,3392.5,1.7321]
[1754179238407,4.4648,3392.6,3392.5,4.3025]
[1754179238408,5.3908,3392.6,3392.5,4.3025]
[1754179238612,7.427,3392.6,3392.5,4.3025]
[1754179239212,7.427,3392.6,3392.5,2.4495]
[1754179239413,7.427,3392.6,3392.5,4.3025]
[1754179240100,4.4648,3392.6,3392.5,4.3025]
[1754179240502,3.8369,3392.6,3392.5,4.3025]
[1754179240906,4.4648,3392.6,3392.5,4.3025]
[1754179241105,5.3908,3392.6,3392.5,4.3025]
[1754179241306,7.427,3392.6,3392.5,0.4772]
[1754179241710,4.2192,3392.4,3392.3,2.7398]
[1754179241911,4.2192,3392.4,3392.3,3.3869]
[1754179242611,4.2192,3392.4,3392.3,4.3025]
[1754179243000,4.2192,3392.4,3392.3,2.4495]
[1754179243313,4.2192,3392.4,3392.3,1.7321]
[1754179243914,4.2192,3392.1,3392.0,6.6609]
[1754179244413,4.2192,3392.1,3392.0,4.3025]
[1754179246311,4.2192,3392.1,3392.0,3.3869]
[1754179246904,0.58966,3392.5,3392.1,0.58972]
[1754179247102,3.2078,3392.6,3392.4,4.3025]
[1754179247309,4.4648,3392.6,3392.5,4.3025]
[1754179247515,5.3908,3392.6,3392.5,4.3025]
[1754179247707,3.2078,3393.0,3392.9,0.58958]
[1754179248011,3.2078,3393.0,3392.9,4.3025]
[1754179248226,4.42631,3393.9,3393.8,2.6695]
[1754179248410,1.84648,3393.6,3393.5,0.6471]
[1754179248608,5.79612723,3393.6,3393.5,0.6471]
[1754179249010,5.79612723,3393.6,3393.5,1.2549]
[1754179249218,4.4011,3393.2,3393.1,1.085]
[1754179249508,4.4011,3393.1,3393.0,1.23667]
[1754179249715,4.4011,3393.1,3393.0,3.25907]
[1754179250013,0.6291,3393.3,3393.2,2.32162]
[1754179250207,4.4011,3393.3,3393.2,4.3025]
[1754179252306,4.4011,3393.1,3393.0,3.7951]
[1754179253408,4.4011,3393.1,3393.0,2.063]
[1754179254819,0.58957,3393.0,3392.3,6.36788]
[1754179255009,1.7563,3392.6,3392.5,2.32175]
[1754179255314,0.6291,3392.6,3392.5,2.32175]
[1754179255620,1.7563,3393.0,3392.9,1.7321]
[1754179255911,1.7563,3393.0,3392.9,4.3025]
[1754179256309,3.2078,3393.1,3392.9,4.3025]
[1754179256510,3.2078,3393.1,3393.0,4.3025]
[1754179257016,4.9641,3393.1,3393.0,4.3025]
[1754179257219,7.6089,3393.1,3393.0,4.3025]
[1754179257715,4.4011,3393.1,3393.0,4.3025]
[1754179259115,5.9979,3393.6,3393.5,4.3685]
[1754179259317,1.0899,3393.7,3393.6,3.2516]
[1754179259617,1.0899,3393.7,3393.6,4.3685]
[1754179259823,2.7037,3393.9,3393.8,4.3685]
[1754179260006,4.4115,3393.9,3393.8,4.3685]
[1754179260212,1.7544,3393.7,3393.6,1.5374]
[1754179260419,4.4115,3393.7,3393.6,4.3685]
[1754179261014,0.58942,3393.9,3393.6,2.7086]
[1754179261216,4.4115,3393.9,3393.8,4.3685]
[1754179261611,4.9622,3394.0,3393.9,2.5872]
[1754179261824,5.9115,3394.0,3393.9,4.3685]
[1754179262113,3.4546,3394.7,3394.6,4.3685]
[1754179262316,4.4115,3394.7,3394.6,0.6644]
[1754179262618,2.7037,3394.0,3393.9,7.5763]
[1754179262822,4.4115,3394.0,3393.9,7.5763]
[1754179263213,1.242,3394.0,3393.9,7.5763]
[1754179263409,0.9569,3394.7,3394.3,1.1169]
[1754179263712,2.7113,3394.7,3394.6,1.7813]
[1754179263919,3.30058,3394.7,3394.6,1.7813]
[1754179264225,4.4115,3394.7,3394.6,4.3685]
[1754179264514,4.4115,3394.7,3394.5,0.58929]
[1754179264515,42.459,3394.8,3394.7,4.3685]
[1754179264717,3.2078,3395.0,3394.7,1.7813]
[1754179264920,3.8066,3395.0,3394.9,4.3685]
[1754179265122,7.6193,3395.0,3394.9,4.3685]
[1754179265318,4.4115,3395.0,3394.9,4.3685]
[1754179265519,1.06041663,3396.7,3394.9,0.9149]
[1754179265715,0.7967436,3396.6,3396.5,1.4059]
[1754179265925,1.0,3397.0,3396.9,1.4059]
[1754179266122,1.0,3397.0,3396.9,4.3252]
[1754179266424,1.7078,3398.1,3397.5,0.58878]
[1754179266618,0.79577005,3398.0,3397.9,1.32431]
[1754179267325,5.32863326,3399.1,3397.9,1.32431]
[1754179267326,2.17917495,3398.9,3398.0,0.5887]
[1754179267530,2.6571,3398.7,3398.3,3.2078]
[1754179267730,1.9062,3398.6,3398.3,3.2078]
[1754179268023,0.9493,3398.9,3398.3,3.2078]
[1754179268335,0.5889,3396.9,3396.1,3.2078]
[1754179268523,0.7509,3396.5,3396.1,3.2078]
[1754179268726,1.9062,3396.3,3396.1,3.2078]
[1754179268928,2.6571,3396.8,3396.1,3.2078]
[1754179269128,0.9493,3396.6,3395.6,5.85192428]
[1754179269322,0.58898,3396.4,3396.1,3.2078]
[1754179269522,0.58901,3396.2,3395.6,3.2078]
[1754179270022,0.9493,3397.1,3396.1,3.2078]
[1754179270325,0.5886,3398.6,3396.7,3.2078]
[1754179270630,0.9569,3398.5,3398.0,3.2078]
[1754179270838,42.427,3399.8,3395.9,43.89964]
[1754179270839,1.0,3400.0,3398.7,0.7738]
[1754179271132,3.2078,3400.6,3399.8,3.2078]
[1754179271324,1.59062495,3401.4,3400.5,3.2078]
[1754179271528,3.434,3401.2,3400.6,0.58824]
[1754179271727,1.59062495,3401.3,3401.1,3.2078]
[1754179272021,1.59062495,3401.3,3400.7,3.2078]
[1754179272022,0.9569,3400.9,3400.7,3.2078]
[1754179272219,1.74151314,3400.8,3400.7,3.2078]
[1754179272723,0.78348144,3400.8,3400.7,3.2078]
[1754179272930,0.9493,3401.3,3400.7,3.79603]
[1754179273139,0.9493,3401.1,3400.9,3.2078]
[1754179273631,1.9062,3401.6,3401.3,0.58812]
[1754179273824,0.9493,3401.6,3401.4,3.2078]
[1754179274226,0.7509,3402.0,3401.4,3.2078]
[1754179274429,3.434,3401.5,3401.4,3.2078]
[1754179274624,2.29592,3401.4,3401.0,3.2078]
[1754179274825,6.0911,3401.1,3401.0,3.2078]
[1754179275022,2.28838,3401.0,3400.2,0.9149]
[1754179275331,4.3833,3400.5,3400.3,0.745]
[1754179275540,4.3833,3400.5,3400.1,3.2078]
[1754179275541,0.9493,3400.3,3400.1,3.2078]
[1754179275724,1.33918,3400.4,3400.1,3.2078]
[1754179276041,0.58837,3399.9,3399.4,0.9273]
[1754179276330,0.9493,3401.2,3400.2,2.24822]
[1754179276521,3.2078,3401.5,3400.8,0.58822]
[1754179276722,0.58806,3401.7,3400.9,0.9273]
[1754179276924,0.9493,3401.4,3400.7,1.6599]
[1754179277133,3.434,3401.0,3400.6,3.2078]
[1754179277324,3.434,3401.0,3400.7,1.6599]
[1754179277524,2.2884,3400.9,3400.1,4.8677]
[1754179277721,1.7002,3400.4,3400.1,3.2078]
[1754179277927,2.6571,3400.3,3400.0,42.4]
[1754179278130,1.9062,3400.4,3399.7,0.5884]
[1754179278334,5.3402,3400.4,3399.8,1.33338]
[1754179278529,5.3402,3400.4,3399.8,0.745]
[1754179278726,5.3402,3400.4,3400.0,0.9273]
[1754179278727,0.9493,3400.4,3400.0,0.9273]
[1754179279030,3.2078,3401.2,3400.2,2.5872]
[1754179279229,3.434,3401.6,3401.4,1.6599]
[1754179279422,3.434,3401.8,3400.8,2.5872]
[1754179279623,3.434,3401.8,3400.9,3.2078]
[1754179279829,3.2078,3401.9,3401.6,0.58808]
[1754179280139,3.2078,3402.4,3402.1,0.58799]
[1754179280327,3.2078,3402.4,3402.3,0.9149]
[1754179280725,1.54486,3402.3,3401.7,0.745]
[1754179280934,4.3833,3402.0,3401.7,1.6599]
[1754179281234,3.2078,3402.4,3402.2,0.58797]
[1754179281430,1.4602,3402.4,3402.3,1.6599]
[1754179281639,0.29832302,3404.7,3402.3,1.6599]
[1754179281640,3.2078,3403.6,3402.9,0.9149]
[1754179281825,3.2078,3403.6,3402.4,1.46985]
[1754179281826,0.58761,3404.3,3403.3,0.58778]
[1754179282028,3.434,3404.1,3403.8,0.58768]
[1754179282234,3.2078,3404.8,3403.7,0.0026]
[1754179282439,3.2078,3404.8,3403.6,3.2078]
[1754179282440,0.7509,3403.8,3403.6,3.2078]
[1754179282638,0.9493,3403.7,3403.6,3.2078]
[1754179282832,0.9493,3404.0,3403.8,0.0026]
[1754179283033,0.9493,3404.0,3403.9,0.58768]
[1754179283232,0.9493,3403.9,3403.6,3.2078]
[1754179283433,0.9493,3403.8,3403.6,3.2078]
[1754179283927,0.9493,3403.7,3403.6,3.79553]
[1754179284129,0.7509,3404.2,3403.6,3.79553]
[1754179284130,3.2078,3404.4,3403.6,3.2078]
[1754179284330,0.9493,3404.4,3403.6,3.2078]
[1754179284538,4.3833,3404.4,3403.7,0.0026]
[1754179284941,3.434,3404.3,3403.7,0.0026]
[1754179285143,4.3909,3404.3,3403.7,0.0026]
[1754179285329,3.434,3404.2,3403.7,0.0026]
[1754179285538,0.9569,3403.8,3403.6,3.2078]
[1754179285736,6.0911,3403.7,3403.6,3.2078]
[1754179286142,1.9062,3403.4,3402.5,4.54072]
[1754179286336,3.434,3403.1,3402.5,4.54072]
[1754179286736,3.434,3403.1,3402.8,0.58787]
[1754179287036,0.58775,3403.5,3402.9,0.745]
[1754179287242,0.58786,3402.9,3402.5,3.2078]
[1754179287440,0.58784,3403.0,3402.5,3.2078]
[1754179287652,2.6571,3402.6,3402.5,3.2078]
[1754179288052,0.7509,3402.6,3402.3,0.58796]
[1754179288249,3.2078,3403.5,3403.3,0.58777]
[1754179288457,4.0239,3404.9,3404.0,0.58765]
[1754179288752,0.9256,3404.3,3404.0,0.58765]
[1754179289050,0.9256,3404.3,3404.2,3.2078]
[1754179289252,2.0023,3404.8,3404.7,0.58755]
[1754179289448,4.3596,3404.7,3404.6,3.2078]
[1754179289645,0.9256,3404.7,3404.6,3.2078]
[1754179290150,2.8184,3404.7,3404.6,3.2078]
[1754179290447,6.2524,3404.7,3404.6,3.2078]
[1754179291253,2.0023,3404.7,3404.6,3.2078]
[1754179291551,3.434,3404.7,3404.5,3.2078]
[1754179291748,2.8184,3404.6,3404.5,3.2078]
[1754179291956,0.8161,3404.5,3404.2,0.58763]
[1754179292151,4.2501,3404.5,3404.2,0.58763]
[1754179292356,0.8161,3404.5,3404.2,0.58763]
[1754179292552,0.9256,3404.4,3404.2,0.60873]
[1754179292753,1.8928,3404.5,3404.2,0.60873]
[1754179292952,0.9256,3404.3,3404.2,0.60873]
[1754179293153,0.9256,3404.3,3404.2,0.63703]
[1754179293455,0.9256,3404.9,3404.6,0.58755]
[1754179293752,0.9256,3404.8,3404.7,0.0494]
[1754179293958,0.9256,3405.4,3404.8,0.58753]
[1754179294151,0.9256,3404.9,3404.8,0.60863]
[1754179294357,0.9256,3404.9,3404.8,3.81643]
[1754179294560,0.9256,3404.9,3404.8,3.84473]
[1754179295346,4.1334,3405.8,3405.6,0.58738]
[1754179295550,1.0767,3405.9,3405.7,0.58737]
[1754179295859,1.0767,3405.8,3405.7,0.58737]
[1754179296060,5.4363,3405.8,3405.7,0.58737]
[1754179296447,6.2524,3405.8,3405.6,3.2078]
[1754179296747,4.5107,3405.8,3405.7,0.58737]
[1754179296953,6.2524,3405.8,3405.7,0.58737]
[1754179297258,0.9256,3405.8,3405.7,0.63677]
[1754179297459,0.9256,3405.8,3405.7,0.60847]
[1754179297657,1.0,3406.0,3405.7,0.63677]
[1754179297850,2.0023,3407.3,3406.8,0.58718]
[1754179298052,0.9256,3407.9,3406.5,1.49639]
[1754179298251,3.434,3407.7,3407.2,0.0494]
[1754179298459,0.9256,3408.4,3407.7,0.0494]
[1754179298657,4.3596,3407.7,3407.6,3.79484]
[1754179298956,3.434,3408.3,3408.2,0.60804]
[1754179299162,0.9256,3408.7,3408.6,0.58687]
[1754179299456,1.0,3409.0,3408.6,0.94396267]
[1754179299756,0.39232,3409.0,3408.9,0.0494]
[1754179299954,4.0239,3410.0,3409.5,0.0211]
[1754179300157,2.8184,3409.7,3409.6,0.35709267]
[1754179300659,6.2524,3409.7,3409.6,0.35709267]
[1754179301162,6.2524,3409.7,3409.3,0.58675]
[1754179301163,4.3596,3409.7,3409.3,0.58675]
[1754179301365,4.1334,3410.1,3409.4,0.40575593]
[1754179301559,4.1334,3410.1,3408.9,3.2078]
[1754179301560,0.9256,3410.3,3409.5,0.35635593]
[1754179301755,3.434,3410.2,3409.6,0.40575593]
[1754179302064,4.3596,3410.2,3410.1,0.5866]
[1754179302365,2.8184,3410.2,3410.1,0.35635593]
[1754179302655,0.9256,3410.2,3410.1,0.37745593]
[1754179302867,0.9256,3410.5,3410.4,0.58656]
[1754179303052,0.9256,3410.5,3410.4,0.96401593]
[1754179303361,9.4602,3410.5,3410.4,0.35635593]
[1754179303565,2.8184,3410.4,3409.8,0.58667]
[1754179303860,0.9256,3410.8,3410.2,3.2078]
[1754179304062,0.9256,3410.8,3410.4,0.58656]
[1754179304263,0.9256,3410.8,3410.7,0.0211]
[1754179304758,0.9256,3411.2,3410.9,0.0211]
[1754179304961,3.2078,3411.3,3410.6,3.2078]
[1754179305254,0.9256,3410.9,3410.8,0.5865]
[1754179305459,0.58653,3410.6,3410.2,3.2078]
[1754179305764,2.0023,3410.1,3409.9,0.94729784]
[1754179305956,2.0023,3410.1,3410.0,0.36064784]
[1754179306159,1.0767,3410.7,3410.0,0.63603]
[1754179306462,0.9256,3410.9,3410.7,0.0494]
[1754179306662,0.9256,3410.8,3410.7,0.0494]
[1754179306859,0.9256,3410.6,3410.5,0.36064784]
[1754179307257,0.9256,3410.6,3410.4,0.58656]
[1754179307258,2.83695,3410.6,3410.4,0.36064784]
[1754179307461,2.0023,3410.4,3410.3,0.36064784]
[1754179307660,4.9495,3411.7,3410.5,0.0211]
[1754179307860,0.9256,3411.1,3411.0,3.81534]
[1754179308071,1.93837,3411.2,3411.0,3.84364]
[1754179308363,0.9256,3411.7,3411.6,0.58636]
[1754179308664,0.9256,3411.7,3411.6,0.63576]
[1754179309060,1.0,3412.0,3411.9,0.58631]
[1754179309257,0.9256,3411.9,3411.8,3.2078]
[1754179309561,2.0023,3411.9,3411.8,3.2078]
[1754179309753,1.0,3412.0,3411.9,0.60741]
[1754179309957,1.0,3412.0,3411.9,0.63571]
[1754179310162,1.0,3412.0,3411.9,0.0494]
[1754179310358,1.9256,3412.0,3411.9,0.0211]
[1754179310559,3.0023,3412.0,3411.8,3.79412]
[1754179310768,2.0023,3411.9,3411.8,3.79412]
[1754179310973,0.38047,3412.0,3411.9,0.0494]
[1754179312468,0.58632,3411.8,3411.4,3.2078]
[1754179312663,4.75677,3411.5,3411.4,3.2078]
[1754179313663,0.8161,3411.1,3411.0,3.2078]
[1754179313965,2.0023,3411.1,3411.0,3.2078]
[1754179314264,1.8928,3411.0,3410.9,3.2078]
[1754179314571,1.93837,3410.7,3410.1,0.0494]
[1754179314757,2.86397,3410.9,3410.7,0.8228]
[1754179314963,2.86397,3410.9,3410.8,3.2078]
[1754179315168,3.94067,3410.9,3410.8,3.2078]
[1754179315368,4.75677,3410.9,3410.5,0.58655]
[1754179315562,1.93837,3410.6,3410.4,3.2078]
[1754179315762,0.58648,3410.9,3410.4,3.2078]
[1754179315763,4.75677,3410.5,3410.4,3.2078]
[1754179316367,3.40497,3410.4,3410.0,3.2078]
[1754179316559,1.93837,3410.5,3409.7,0.58668]
[1754179316560,1.93837,3410.1,3409.7,0.58668]
[1754179316769,0.5866,3410.3,3410.0,3.2078]
[1754179316969,1.93837,3409.7,3409.6,3.2078]
[1754179317164,3.94067,3409.7,3409.6,3.2078]
[1754179317379,5.34345,3409.7,3409.6,3.2078]
[1754179317563,5.34345,3409.7,3409.1,3.2078]
[1754179317564,0.58674,3409.4,3409.1,3.2078]
[1754179317766,2.8184,3409.1,3408.8,0.58684]
[1754179318068,2.0975,3409.0,3408.8,1.42914]
[1754179318973,0.8161,3409.1,3408.7,3.2078]
[1754179318974,0.58672,3409.5,3408.7,3.2078]
[1754179319169,2.73907,3409.0,3408.7,3.79465]
[1754179319378,2.0975,3408.8,3408.7,3.2078]
[1754179319579,4.83657,3408.8,3408.7,3.2078]
[1754179319868,4.83657,3408.8,3407.9,0.8423]
[1754179319869,2.68436,3408.7,3408.2,3.2078]
[1754179320075,4.83657,3408.3,3408.2,3.2078]
[1754179320275,4.83657,3408.3,3407.5,42.238]
[1754179320276,0.8007,3408.1,3407.5,42.238]
[1754179320462,3.2078,3408.6,3407.5,42.238]
[1754179320463,2.0975,3407.6,3407.5,42.238]
[1754179320666,1.1784,3407.6,3407.5,3.2078]
[1754179320863,3.2078,3408.6,3407.7,0.58703]
[1754179321074,2.0975,3408.4,3408.3,0.58692]
[1754179321273,3.2078,3408.6,3408.3,1.42922]
[1754179321471,3.2078,3409.4,3408.6,0.9595]
[1754179321678,3.2078,3409.9,3409.1,3.2078]
[1754179321886,1.93837,3409.8,3409.6,0.5867]
[1754179322066,3.2078,3409.9,3409.5,0.9595]
[1754179322272,4.03587,3409.8,3409.2,0.8423]
[1754179322574,1.93837,3409.7,3409.3,0.58675]
[1754179322774,2.8982,3409.6,3409.1,3.2078]
[1754179322970,0.9191,3409.4,3409.1,3.2078]
[1754179323166,3.91747,3409.3,3409.1,3.2078]
[1754179323366,2.0975,3409.2,3409.1,3.2078]
[1754179323779,0.8007,3409.8,3409.2,0.58677]
[1754179323984,1.93837,3409.5,3409.3,0.58675]
[1754179324376,1.1784,3409.8,3409.6,0.5867]
[1754179324573,4.1269,3409.9,3409.8,0.58667]
[1754179324772,0.9191,3409.9,3409.8,1.42897]
[1754179325075,2.0975,3410.1,3410.0,0.58663]
[1754179325272,2.0975,3410.1,3409.9,0.58664]
[1754179325473,1.1784,3410.0,3409.9,0.58664]
[1754179325675,4.23936263,3411.2,3410.8,0.5865]
[1754179325873,2.8982,3410.9,3410.7,0.58651]
[1754179326180,3.2078,3411.2,3410.4,4.0501]
[1754179326181,2.0975,3410.5,3410.4,3.79436]
[1754179326481,1.7198,3410.4,3410.0,0.58663]
[1754179326775,1.1784,3410.0,3409.9,0.58664]
[1754179326982,4.83657,3410.0,3409.9,0.58664]
[1754179327190,3.11677,3410.0,3409.8,3.2078]
[1754179327478,2.72244625,3409.9,3409.4,0.58672]
[1754179327775,1.93837,3408.9,3407.9,3.2078]
[1754179327982,1.93837,3408.3,3407.9,3.79479]
[1754179328283,3.2078,3408.9,3407.9,3.79479]
[1754179328284,1.1784,3408.1,3407.9,3.2078]
[1754179328794,2.0975,3408.0,3407.9,3.79479]
[1754179328972,3.2078,3408.4,3408.0,0.58698]
[1754179329171,3.2078,3408.4,3407.9,4.0501]
[1754179329172,2.85747,3408.2,3407.9,3.79479]
[1754179329477,2.0975,3408.1,3407.9,4.0501]
[1754179329675,1.9791,3408.4,3408.3,0.58693]
[1754179329878,4.03587,3408.4,3408.3,0.8423]
[1754179330379,2.0975,3408.3,3408.1,0.8423]
[1754179330678,2.0975,3408.2,3407.9,4.0501]
[1754179330882,3.65817,3408.3,3407.9,3.2078]
[1754179331088,3.2078,3408.6,3407.9,3.2078]
[1754179331089,2.8982,3408.0,3407.9,3.2078]
[1754179331481,4.83657,3408.0,3407.9,3.2078]
[1754179331781,4.83657,3408.0,3407.3,3.2078]
[1754179331782,0.58708,3407.5,3407.3,3.2078]
[1754179331983,1.03156263,3408.3,3406.1,0.8423]
[1754179331984,1.93837,3407.4,3406.1,0.8423]
[1754179332187,1.1784,3406.5,3406.2,1.8018]
[1754179332678,2.8982,3406.6,3406.2,0.58727]
[1754179332878,1.7198,3406.5,3406.2,0.58727]
[1754179333091,1.1784,3407.1,3406.7,0.58719]
[1754179333386,2.8982,3406.8,3406.5,1.68853]
[1754179333593,3.2078,3406.7,3406.4,2.38905]
[1754179333784,3.2078,3406.7,3406.1,1.1013]
[1754179333785,2.8982,3407.0,3406.7,2.389]
[1754179333987,1.93837,3406.9,3406.7,3.4903]
[1754179334184,3.2078,3406.8,3406.7,2.9031]
[1754179334492,1.7198,3407.0,3406.8,0.58718]
[1754179334790,1.1784,3406.6,3406.4,0.58725]
[1754179334979,1.93837,3406.4,3406.1,0.5873]
[1754179335178,3.65817,3406.0,3405.9,4.26477383]
[1754179335384,1.93837,3406.2,3406.0,0.58732]
[1754179335592,1.9791,3406.5,3405.9,6.06657383]
[1754179335781,1.93837,3406.0,3405.9,4.26477383]
[1754179336083,4.83657,3406.0,3405.9,4.26477383]
[1754179336296,4.83657,3406.0,3405.9,1.05697383]
[1754179336880,1.93837,3406.0,3404.8,5.2686]
[1754179337088,2.8982,3405.2,3405.0,0.58748]
[1754179337285,1.93837,3405.3,3405.2,0.58746]
[1754179337486,3.2078,3405.6,3405.2,0.58746]
[1754179337685,1.93837,3405.3,3405.2,0.58746]
[1754179338089,4.83657,3405.3,3405.1,3.49057]
[1754179338292,2.8982,3405.1,3404.9,0.5875]
[1754179338991,2.8982,3405.5,3405.4,0.58742]
[1754179339186,1.93837,3405.2,3405.0,2.53109]
[1754179339393,1.93837,3405.2,3404.8,3.2078]
[1754179339394,2.8982,3405.0,3404.9,0.58751]
[1754179339692,1.93837,3405.1,3404.9,0.58751]
[1754179339885,0.5873,3406.2,3405.5,0.5874]
[1754179340094,3.2078,3405.6,3405.5,0.5874]
[1754179340283,8.04437,3405.6,3405.5,0.5874]
[1754179340491,1.93837,3405.6,3405.5,3.4905]
[1754179340688,3.2078,3405.8,3405.5,3.4905]
[1754179340892,1.93837,3405.7,3405.6,2.9031]
[1754179341294,2.8982,3406.1,3406.0,0.58732]
[1754179341687,4.83657,3406.1,3406.0,0.58732]
[1754179342798,1.7198,3405.9,3405.2,3.2078]
[1754179342987,1.7198,3405.9,3404.2,1.46905]
[1754179342988,1.1784,3405.2,3404.8,0.58751]
[1754179343193,1.1784,3405.2,3404.5,4.1673]
[1754179343194,1.93837,3404.9,3404.6,0.58756]
[1754179343490,1.93837,3404.6,3404.5,3.2078]
[1754179343690,4.83657,3404.6,3404.5,3.2078]
[1754179343891,2.8982,3404.6,3404.5,3.2078]
[1754179344989,2.8982,3404.6,3404.5,3.79538]
[1754179346194,4.83657,3404.6,3404.5,3.79538]
[1754179346986,4.83657,3404.6,3404.5,0.58758]
[1754179347191,8.04437,3404.6,3404.5,0.58758]
[1754179347392,2.8982,3404.5,3404.3,0.58761]
[1754179347593,3.2078,3404.6,3404.3,0.58761]
[1754179347800,4.83657,3404.4,3404.3,0.58761]
[1754179348297,4.83657,3404.4,3403.9,45.4728]
[1754179348298,1.93837,3404.4,3404.1,0.58764]
[1754179348595,4.85857,3404.2,3404.0,0.58766]
[1754179348794,4.85857,3404.1,3404.0,0.58766]